bitfinex/quotes_ETHUSD_20250802
["timestamp","ask_amount","ask_price","bid_price","bid_amount"]
[1754116874993,0.144,3464.1,3463.6,0.144]
[1754116875193,0.4799,3464.0,3463.6,0.144]
[1754116875401,0.4481,3464.0,3463.6,0.144]
[1754116875572,0.4799,3463.9,3463.6,0.144]
[1754116876067,0.4799,3463.8,3463.6,0.144]
[1754116876264,0.144,3464.1,3463.6,0.144]
[1754116876464,0.4799,3463.9,3463.6,0.144]
[1754116876780,0.4799,3463.9,3463.3,0.002]
[1754116876781,0.4799,3464.2,3463.8,0.144]
[1754116877094,0.928,3464.1,3463.3,0.002]
[1754116877395,0.4799,3464.1,3463.3,0.002]
[1754116877605,0.6239,3464.1,3463.6,0.144]
[1754116877768,0.928,3464.0,3463.6,0.144]
[1754116877962,0.928,3463.9,3463.3,0.002]
[1754116878162,0.6239,3463.8,3463.4,0.144]
[1754116878359,1.072,3463.8,3463.4,0.144]
[1754116878604,0.928,3463.7,3463.4,0.144]
[1754116878759,0.144,3463.8,3463.4,0.144]
[1754116878964,0.4799,3464.0,3463.7,0.144]
[1754116879163,0.4799,3463.9,3463.5,0.144]
[1754116879404,0.001,3464.6,3463.6,0.4192]
[1754116879703,0.001,3464.6,3463.3,0.002]
[1754116879704,0.144,3463.9,3463.4,0.144]
[1754116879996,0.144,3463.9,3463.3,0.002]
[1754116879997,0.144,3463.5,3463.3,0.002]
[1754116880377,0.928,3463.4,3463.3,0.002]
[1754116881578,5.658,3463.4,3463.3,0.002]
[1754116882864,0.928,3463.4,3463.3,0.002]
[1754116883066,5.653,3463.4,3463.3,0.002]
[1754116885500,1.072,3463.4,3463.3,0.002]
[1754116885806,5.799,3463.4,3463.3,0.002]
[1754116885962,1.072,3463.4,3463.3,0.002]
[1754116886168,5.8,3463.4,3463.3,0.002]
[1754116887569,1.072,3463.4,3463.3,0.002]
[1754116887768,5.806,3463.4,3463.3,0.002]
[1754116889615,35.806,3463.4,3463.3,0.002]
[1754116889777,5.806,3463.4,3463.3,0.002]
[1754116890478,1.072,3463.4,3463.3,0.002]
[1754116891018,5.8,3463.4,3463.3,0.002]
[1754116891425,7.536,3463.4,3463.3,0.002]
[1754116892604,5.3489,3463.4,3463.3,0.002]
[1754116892933,4.868,3463.4,3463.3,0.002]
[1754116893271,5.8017,3463.4,3463.3,0.002]
[1754116894241,7.5377,3463.4,3463.3,0.002]
[1754116894569,2.8137,3463.4,3463.3,0.002]
[1754116894904,7.5367,3463.4,3463.3,0.002]
[1754116896601,14.4757,3463.4,3463.3,0.002]
[1754116897290,44.4757,3463.4,3463.3,0.002]
[1754116898021,45.0257,3463.4,3463.3,0.002]
[1754116898552,50.91303614,3463.4,3463.3,0.002]
[1754116898836,44.98380281,3463.4,3463.3,0.002]
[1754116899037,49.3117,3463.4,3463.3,0.002]
[1754116899241,59.19903614,3463.4,3463.3,0.002]
[1754116899741,62.63413895,3463.4,3463.3,0.002]
[1754116900141,30.0,3462.4,3460.6,0.4192]
[1754116900342,1.736,3461.9,3460.4,0.4192]
[1754116900546,4.736,3461.7,3460.4,0.4192]
[1754116900959,4.736,3461.5,3460.3,0.02327]
[1754116901156,4.72,3461.4,3460.3,0.02327]
[1754116901360,6.456,3461.4,3460.4,0.4192]
[1754116901647,4.72,3461.3,3460.4,0.4192]
[1754116901850,4.72,3461.2,3460.4,0.4192]
[1754116902311,7.4286,3461.7,3460.4,0.5278]
[1754116902666,13.943,3461.7,3460.5,0.1086]
[1754116902818,13.943,3461.7,3460.5,0.5278]
[1754116903161,5.2056,3461.6,3460.5,0.4192]
[1754116903313,0.9337,3461.5,3460.4,0.4192]
[1754116903513,4.721,3461.4,3460.5,0.1086]
[1754116903714,4.721,3461.3,3460.6,0.4192]
[1754116904021,4.721,3461.3,3460.7,0.1086]
[1754116904338,4.721,3461.3,3460.4,0.4192]
[1754116904520,4.721,3461.2,3460.5,0.1086]
[1754116904724,4.721,3461.1,3460.6,0.4192]
[1754116904949,4.721,3461.0,3460.6,0.4192]
[1754116905150,4.721,3461.0,3460.3,0.02327]
[1754116905151,4.721,3460.9,3460.7,0.5278]
[1754116905348,0.4856,3461.4,3460.3,0.02327]
[1754116905560,6.943,3461.7,3460.4,0.5278]
[1754116905766,4.721,3461.6,3460.5,0.5278]
[1754116905966,6.943,3461.7,3460.6,3.55669672]
[1754116906171,4.721,3461.6,3460.7,0.5278]
[1754116906464,4.723,3461.9,3460.9,3.0]
[1754116906776,5.2076,3462.0,3460.7,0.5278]
[1754116906936,4.734,3461.9,3460.7,0.5278]
[1754116907138,30.0,3462.7,3460.3,0.02327]
[1754116907343,5.2266,3462.6,3460.8,0.5278]
[1754116907554,0.4856,3462.6,3460.9,0.5278]
[1754116907734,0.4856,3462.6,3460.3,2.91319205]
[1754116907735,4.742,3462.5,3461.0,0.55669338]
[1754116907947,0.4856,3462.4,3461.0,0.5278]
[1754116908153,0.9337,3462.4,3460.8,0.5278]
[1754116908365,0.4856,3462.8,3460.9,0.5278]
[1754116908570,0.4856,3462.8,3461.0,3.55669338]
[1754116908732,0.4856,3462.8,3461.1,0.5278]
[1754116908928,6.945,3463.0,3460.5,3.02889755]
[1754116909155,0.1448,3462.4,3461.9,0.1448]
[1754116909368,4.739,3462.9,3461.9,0.1448]
[1754116909579,0.1448,3462.5,3462.0,0.4192]
[1754116909891,4.883,3463.2,3462.8,0.144]
[1754116910033,4.883,3463.2,3461.3,0.02889087]
[1754116910034,0.144,3463.2,3462.4,0.1448]
[1754116910234,6.946,3464.4,3463.1,0.144]
[1754116910435,0.001,3464.4,3463.2,0.44807502]
[1754116910764,0.001,3464.4,3464.1,3.0]
[1754116910978,0.001,3464.6,3464.2,0.02886669]
[1754116911139,0.001,3464.6,3464.5,0.144]
[1754116911485,0.001,3465.8,3464.4,0.55]
[1754116911692,0.001,3465.8,3464.9,18.51560233]
[1754116911693,18.76945495,3465.0,3464.9,18.51560233]
[1754116911852,0.001,3465.8,3465.2,3.0]
[1754116912041,0.001,3465.8,3465.2,0.02885836]
[1754116912389,0.001,3465.8,3465.3,5.2778]
[1754116912536,0.001,3465.8,3465.3,0.5258]
[1754116912880,0.001,3465.8,3464.9,12.62951616]
[1754116912881,0.4659,3465.8,3464.9,0.4172]
[1754116913616,0.001,3465.8,3465.0,3.13746002]
[1754116913785,7.0,3465.7,3465.1,1.0758]
[1754116914110,7.0,3465.7,3465.2,0.5258]
[1754116914272,7.0,3465.7,3465.1,0.55]
[1754116914472,7.0,3465.7,3465.4,0.55]
[1754116914669,5.9609375,3465.7,3465.6,19.06501939]
[1754116914911,5.9609375,3465.7,3465.6,16.70531616]
[1754116914912,4.46961164,3465.7,3465.6,16.70531616]
[1754116915112,4.46961164,3465.7,3465.6,16.15531616]
[1754116915275,4.46961164,3465.7,3465.6,3.4172]
[1754116915475,4.46961164,3465.7,3465.6,3.5258]
[1754116915773,6.99999164,3465.7,3465.6,3.4172]
[1754116916400,0.001,3466.8,3465.7,3.55]
[1754116916601,0.001,3466.8,3466.4,3.0]
[1754116916813,0.001,3466.8,3466.3,12.62951616]
[1754116916814,0.001,3467.2,3466.9,3.0]
[1754116917015,0.001,3467.2,3466.9,2.91320787]
[1754116917214,0.001,3467.2,3467.0,1.0748]
[1754116917588,0.001,3467.2,3467.1,1.0748]
[1754116917901,0.001,3467.2,3466.9,0.4162]
[1754116918227,0.001,3467.2,3466.3,3.5248]
[1754116918788,0.001,3467.2,3466.3,3.0]
[1754116918993,0.001,3467.2,3467.0,3.0]
[1754116919194,0.001,3467.2,3466.9,0.55]
[1754116919419,0.001,3467.2,3467.1,0.55]
[1754116919925,0.001,3467.2,3467.1,1.0748]
[1754116920304,0.001,3467.2,3466.6,0.5248]
[1754116920490,0.4323,3467.1,3465.7,13.04571616]
[1754116920826,0.4649,3467.0,3465.7,4.762]
[1754116921012,0.001,3467.2,3465.8,0.5248]
[1754116921337,0.001,3467.2,3466.8,3.55]
[1754116921538,0.001,3467.2,3467.1,0.144]
[1754116921892,0.001,3467.2,3467.1,1.2188]
[1754116922237,0.001,3467.2,3467.1,4.10305485]
[1754116922414,0.001,3467.2,3467.1,19.76141355]
[1754116922588,0.001,3467.2,3467.1,19.73257101]
[1754116924018,6.4453125,3468.0,3467.3,0.55]
[1754116924341,6.4453125,3468.0,3467.9,0.694]
[1754116924540,6.4453125,3468.0,3467.9,11.34258949]
[1754116924541,5.53894042,3468.0,3467.9,11.34258949]
[1754116924695,0.001,3469.7,3468.6,0.55]
[1754116924894,0.001,3469.7,3468.8,3.55]
[1754116925094,0.001,3469.7,3469.0,3.0]
[1754116925296,0.001,3469.7,3469.6,0.144]
[1754116926550,0.001,3469.7,3469.6,7.912]
[1754116926713,0.001,3469.7,3469.6,11.86897661]
[1754116927110,0.4649,3471.6,3470.4,2.88148195]
[1754116927327,0.4323,3471.9,3470.6,3.0]
[1754116927531,0.4323,3471.9,3471.5,0.144]
[1754116927750,0.4649,3471.9,3471.8,0.144]
[1754116927954,0.144,3472.0,3471.2,4.766]
[1754116928234,0.144,3472.0,3470.2,2.88167828]
[1754116928400,0.4649,3471.9,3471.8,0.144]
[1754116928599,0.4649,3472.3,3471.4,4.771]
[1754116928807,0.4649,3472.3,3470.2,12.62951616]
[1754116928808,0.4649,3473.3,3471.6,12.62951616]
[1754116929008,0.4649,3473.3,3472.6,0.144]
[1754116929243,0.145,3473.6,3472.6,0.144]
[1754116929437,0.001,3473.6,3472.6,0.694]
[1754116929733,0.001,3473.6,3472.6,8.8892]
[1754116929936,0.001,3473.6,3472.6,11.73348669]
[1754116930310,0.001,3473.6,3472.6,8.8508]
[1754116930523,0.001,3473.6,3472.6,11.20568669]
[1754116930823,0.001,3473.6,3473.0,6.42935502]
[1754116931324,0.001,3473.6,3473.0,6.95415502]
[1754116931501,0.001,3473.6,3473.0,8.8528]
[1754116931856,0.001,3473.6,3473.0,11.62455502]
[1754116932061,0.001,3473.6,3471.0,2.88100858]
[1754116932378,0.4649,3473.5,3471.9,0.4162]
[1754116932560,0.4649,3473.5,3472.1,3.55]
[1754116932861,0.4649,3473.5,3472.3,3.42992905]
[1754116933073,0.001,3473.6,3472.5,0.55]
[1754116933374,0.001,3473.6,3472.7,3.55]
[1754116933536,0.001,3473.6,3472.7,0.55]
[1754116933739,0.001,3473.6,3471.6,0.1086]
[1754116933942,0.8972,3473.0,3471.7,4.788]
[1754116934138,0.4649,3473.0,3472.0,3.0]
[1754116934358,0.4649,3473.0,3471.9,2.88025599]
[1754116934533,0.4323,3472.9,3471.7,4.788]
[1754116935065,0.4649,3473.0,3472.2,3.0]
[1754116935368,0.4649,3473.0,3472.2,5.88000638]
[1754116935538,0.4649,3473.0,3472.3,0.55]
[1754116935736,0.8972,3473.0,3472.2,4.785]
[1754116935965,0.8972,3473.0,3472.2,5.2499]
[1754116935966,0.4649,3472.9,3472.2,5.2499]
[1754116936172,0.8972,3472.9,3472.2,0.4649]
[1754116936477,0.8972,3472.8,3471.8,4.782]
[1754116936770,0.8972,3472.7,3471.8,0.865535]
[1754116936952,0.001,3473.6,3470.3,4.782]
[1754116936953,0.8972,3472.6,3470.3,4.782]
[1754116937133,0.8972,3472.5,3471.2,0.865719]
[1754116937328,0.8972,3472.4,3471.2,0.865719]
[1754116937533,0.001,3473.1,3471.2,0.865719]
[1754116937534,0.8972,3472.3,3471.2,0.865719]
[1754116937838,0.8972,3472.2,3471.3,0.02880765]
[1754116938039,0.8972,3472.2,3471.3,0.55]
[1754116938255,0.8972,3472.1,3471.2,0.865719]
[1754116938450,0.8972,3472.0,3471.2,0.865719]
[1754116938664,0.8972,3471.9,3470.2,2.88165625]
[1754116938880,0.551,3473.1,3470.4,3.0]
[1754116939170,0.8972,3471.8,3469.9,3.0]
[1754116939391,0.4649,3471.7,3470.5,3.0]
[1754116939539,0.4649,3471.7,3470.5,0.865827]
[1754116940080,0.5763,3471.6,3471.1,0.144]
[1754116940241,0.8972,3471.5,3471.1,0.144]
[1754116940441,0.8972,3471.4,3471.1,0.144]
[1754116940679,0.8972,3471.3,3471.1,0.144]
[1754116940854,0.4649,3472.0,3471.5,0.144]
[1754116941066,0.8972,3471.9,3470.5,3.865827]
[1754116941248,0.4649,3471.8,3471.6,0.144]
[1754116941448,0.144,3472.1,3471.0,3.55]
[1754116941449,0.4649,3472.1,3471.0,3.55]
[1754116941634,0.4985,3471.8,3471.7,0.144]
[1754116942350,0.4985,3472.3,3471.7,0.144]
[1754116942980,0.4985,3472.3,3471.4,0.4649]
[1754116942981,0.4985,3472.3,3472.1,0.144]
[1754116943154,0.4985,3472.9,3472.2,0.17280018]
[1754116943475,0.4361,3472.8,3471.7,3.0]
[1754116943684,0.144,3472.5,3472.0,0.144]
[1754116943879,0.9346,3472.4,3472.0,0.144]
[1754116944083,0.4985,3472.3,3472.0,0.144]
[1754116944379,0.144,3472.5,3472.0,0.144]
[1754116944564,0.144,3472.5,3471.7,3.0]
[1754116944777,0.4985,3472.7,3472.4,0.144]
[1754116945081,0.4985,3472.7,3472.6,0.144]
[1754116945442,0.001,3473.1,3472.6,0.144]
[1754116945643,0.4985,3473.0,3472.8,0.144]
[1754116945845,0.001,3473.1,3473.0,0.144]
[1754116946084,0.001,3473.1,3472.9,0.144]
[1754116946443,0.4995,3473.1,3472.9,0.144]
[1754116946688,0.9346,3473.0,3472.9,0.144]
[1754116946899,0.9346,3473.0,3471.6,3.0]
[1754116947083,0.145,3473.1,3472.2,0.144]
[1754116947084,0.144,3472.7,3472.2,0.144]
[1754116947266,0.9346,3472.6,3472.2,0.144]
[1754116947460,0.9346,3472.5,3472.2,0.144]
[1754116947666,0.9346,3472.4,3471.6,3.0]
[1754116947863,0.9346,3472.4,3472.3,0.144]
[1754116948185,0.9346,3472.4,3471.4,0.4649]
[1754116948186,0.144,3472.2,3471.7,0.144]
[1754116948391,0.144,3472.0,3471.4,0.144]
[1754116948902,0.9346,3471.9,3471.4,0.144]
[1754116949105,0.9346,3471.8,3470.8,4.795]
[1754116949278,0.6425,3471.7,3471.2,0.144]
[1754116949910,0.9346,3471.6,3471.2,0.144]
[1754116950062,0.4985,3471.5,3471.2,0.144]
[1754116950373,0.9346,3471.5,3471.2,0.144]
[1754116950576,0.9346,3471.4,3470.8,0.865797]
[1754116950890,0.4985,3471.3,3471.0,0.144]
[1754116951078,0.9346,3471.3,3471.0,0.144]
[1754116951274,0.4985,3471.2,3471.0,0.144]
[1754116951900,0.4985,3471.1,3471.0,0.144]
[1754116953402,0.6425,3471.6,3471.0,0.144]
[1754116953616,1.737,3473.1,3470.6,0.865849]
[1754116953617,0.9346,3471.5,3470.6,0.865849]
[1754116953901,0.9346,3471.5,3470.1,0.002]
[1754116953902,0.9346,3471.4,3470.1,0.002]
[1754116954198,0.9346,3471.4,3470.1,0.867974]
[1754116954404,0.9346,3471.3,3470.1,0.867974]
[1754116954562,0.9346,3471.2,3470.1,0.867974]
[1754116954763,0.4985,3471.1,3470.1,0.867974]
[1754116954979,0.4361,3471.0,3470.1,0.867974]
[1754116955184,0.4985,3470.9,3470.1,0.002]
[1754116955701,0.4361,3470.8,3470.1,0.002]
[1754116956065,0.4985,3470.7,3470.1,0.002]
[1754116956580,0.4361,3470.6,3470.1,0.002]
[1754116957302,0.4985,3470.5,3470.1,0.002]
[1754116957502,0.9346,3470.5,3470.1,0.002]
[1754116957867,0.9346,3470.4,3470.1,0.002]
[1754116958404,0.9346,3470.3,3470.1,0.002]
[1754116958904,0.9346,3470.2,3470.1,0.002]
[1754116960710,3.0,3470.9,3470.1,0.002]
[1754116960711,0.4985,3470.7,3470.1,0.002]
[1754116961512,0.4361,3470.9,3470.1,0.002]
[1754116962002,6.924,3472.6,3470.1,0.002]
[1754116962168,0.4985,3471.7,3470.3,3.43157445]
[1754116962377,0.4985,3471.7,3470.4,0.5248]
[1754116962591,0.4361,3471.6,3470.1,0.002]
[1754116962805,0.4361,3471.6,3470.2,0.1086]
[1754116963006,0.4985,3472.0,3470.5,0.55]
[1754116963308,0.4985,3472.0,3470.6,0.5248]
[1754116963605,0.144,3471.9,3471.4,0.144]
[1754116963909,0.4985,3471.8,3471.4,0.144]
[1754116964126,0.4985,3471.7,3471.6,0.144]
[1754116964268,0.4985,3471.7,3471.1,0.4985]
[1754116964469,0.4985,3471.7,3471.4,0.144]
[1754116964969,0.4985,3471.6,3471.4,0.144]
[1754116965306,0.144,3471.7,3471.2,0.144]
[1754116965509,0.4985,3471.9,3470.7,0.865762]
[1754116965879,0.4985,3471.9,3470.8,0.0288118]
[1754116966078,0.4985,3471.9,3470.8,0.4450118]
[1754116966305,0.4985,3471.9,3470.8,0.4162]
[1754116966490,0.4985,3471.9,3470.9,0.02881097]
[1754116966811,0.4985,3472.8,3471.0,1.0748]
[1754116966979,0.4985,3472.8,3471.2,0.55]
[1754116967179,0.001,3473.1,3470.7,0.865762]
[1754116967180,0.9346,3472.6,3470.7,0.865762]
[1754116967381,0.001,3473.1,3470.7,3.865762]
[1754116967585,0.4995,3472.7,3471.2,3.55]
[1754116967894,0.4995,3472.7,3471.4,3.0]
[1754116968299,0.4995,3472.7,3471.3,3.4162]
[1754116968593,0.55,3472.2,3471.1,0.4995]
[1754116968793,3.55,3471.8,3469.7,0.002]
[1754116969194,0.55,3471.6,3469.7,0.002]
[1754116969605,0.9346,3471.5,3469.7,0.002]
[1754116969987,1.4846,3471.4,3469.7,0.002]
[1754116970516,0.55,3471.2,3469.7,0.002]
[1754116970880,0.9346,3471.1,3469.7,0.002]
[1754116971306,0.55,3471.4,3469.7,0.002]
[1754116971519,0.9346,3471.0,3469.7,0.002]
[1754116971814,0.55,3470.8,3469.7,0.002]
[1754116972315,0.9414,3470.7,3469.7,0.002]
[1754116972615,7.9414,3470.7,3469.7,0.002]
[1754116972920,0.9414,3470.6,3469.7,0.002]
[1754116973425,0.9414,3470.5,3469.7,0.002]
[1754116973928,0.9414,3470.4,3469.7,0.002]
[1754116974433,0.9414,3470.3,3469.7,0.002]
[1754116974801,0.9414,3470.6,3469.7,0.002]
[1754116975286,0.4699,3470.9,3469.7,0.002]
[1754116975482,0.144,3470.8,3470.3,0.144]
[1754116975707,0.9414,3470.7,3470.3,0.144]
[1754116975907,0.9414,3470.6,3470.1,0.002]
[1754116976122,0.144,3470.4,3470.1,0.002]
[1754116976321,0.9414,3470.5,3470.1,0.002]
[1754116976481,0.144,3470.3,3470.1,0.002]
[1754116977023,0.4699,3470.8,3470.1,0.002]
[1754116977224,0.144,3470.6,3470.1,0.146]
[1754116977429,0.4699,3471.3,3470.1,0.603]
[1754116977612,0.4699,3471.3,3470.1,0.002]
[1754116977613,0.144,3470.9,3470.1,0.002]
[1754116977818,0.144,3470.9,3470.3,0.144]
[1754116978335,0.4715,3471.2,3470.1,0.459]
[1754116978537,0.144,3471.1,3470.6,0.144]
[1754116979096,0.6139,3471.1,3470.6,0.144]
[1754116979311,1.0854,3471.1,3470.6,0.144]
[1754116979507,0.6139,3471.1,3470.6,0.144]
[1754116979708,0.144,3471.1,3470.6,0.144]
[1754116980118,0.9414,3471.0,3470.6,0.144]
[1754116980334,0.4699,3470.9,3470.6,0.144]
[1754116980661,0.4699,3470.9,3470.1,0.002]
[1754116980833,0.9414,3470.9,3470.1,0.002]
[1754116981163,0.144,3470.4,3470.1,0.002]
[1754116981650,0.6139,3470.4,3470.1,0.002]
[1754116982003,0.144,3470.4,3470.1,0.002]
[1754116982624,0.4699,3470.8,3470.1,0.03081761]
[1754116982834,0.144,3470.7,3470.2,0.144]
[1754116983036,0.144,3470.8,3470.3,0.144]
[1754116983335,0.9414,3470.7,3470.2,0.144]
[1754116983637,0.144,3470.8,3470.2,0.144]
[1754116984021,0.144,3471.2,3470.6,0.144]
[1754116984235,0.4699,3471.5,3470.7,0.02881263]
[1754116984438,0.144,3471.3,3470.8,0.144]
[1754116984643,0.4699,3471.2,3470.8,0.144]
[1754116984809,0.9414,3471.1,3470.1,0.002]
[1754116985002,0.144,3471.0,3470.5,0.144]
[1754116985415,0.144,3471.0,3470.1,0.002]
[1754116985416,0.6139,3471.2,3470.7,0.144]
[1754116985622,0.144,3471.2,3470.7,0.144]
[1754116985823,0.9414,3471.1,3470.2,0.457]
[1754116986018,0.4699,3471.1,3470.6,0.144]
[1754116986365,0.144,3471.2,3470.6,0.144]
[1754116986868,0.9414,3471.1,3470.3,0.144]
[1754116987025,0.144,3470.8,3470.1,0.002]
[1754116987208,0.144,3470.8,3470.2,0.144]
[1754116987840,0.144,3470.8,3470.3,0.002]
[1754116988052,0.9414,3470.7,3470.3,0.002]
[1754116988340,0.144,3470.5,3470.3,0.002]
[1754116988760,0.4699,3470.4,3470.3,0.002]
[1754116990040,0.9414,3470.4,3470.3,0.002]
[1754116991750,0.144,3470.5,3470.3,0.002]
[1754116992770,0.9414,3471.1,3470.3,0.002]
[1754116993069,0.9414,3471.7,3470.4,0.8732]
[1754116993352,0.9414,3472.2,3470.5,3.8732]
[1754116993514,0.9414,3472.2,3470.4,0.55]
[1754116993716,0.9414,3472.1,3470.5,0.457]
[1754116994242,0.9414,3472.0,3470.5,0.457]
[1754116994427,0.9414,3471.9,3470.5,0.457]
[1754116994757,0.9414,3472.0,3470.5,0.457]
[1754116995253,0.9414,3472.0,3470.4,0.4162]
[1754116995466,0.4715,3472.0,3470.5,0.457]
[1754116995625,0.9414,3471.9,3470.5,0.457]
[1754116996316,0.9414,3471.9,3470.5,1.007]
[1754116997414,0.9414,3471.9,3470.6,0.457]
[1754116998118,0.9414,3471.8,3470.4,0.4162]
[1754116998455,0.9414,3472.0,3470.3,0.552]
[1754116998629,0.9414,3472.0,3470.5,0.457]
[1754116999024,0.9414,3472.0,3470.5,3.8732]
[1754116999232,0.9414,3472.0,3470.6,0.457]
[1754116999429,5.1919,3472.3,3470.8,0.55]
[1754116999627,5.1919,3472.3,3470.9,0.457]
[1754116999814,0.9414,3472.2,3470.9,0.457]
[1754117000018,4.722,3472.3,3470.3,0.002]
[1754117000019,0.9414,3472.1,3470.3,0.002]
[1754117000356,0.9414,3472.1,3470.4,0.457]
[1754117000667,0.9414,3472.0,3470.4,0.457]
[1754117000876,0.9414,3471.9,3470.5,0.9662]
[1754117001036,0.4699,3472.3,3470.6,3.75452828]
[1754117001353,0.4699,3472.3,3470.9,3.55]
[1754117001570,0.4715,3472.2,3470.3,0.459]
[1754117001718,1.0308,3472.1,3470.3,0.002]
[1754117001921,31.736,3471.8,3470.3,0.002]
[1754117002227,0.9162,3472.0,3470.3,0.002]
[1754117002427,0.001,3472.7,3470.3,0.002]
[1754117002428,0.9162,3471.7,3470.3,0.002]
[1754117002632,0.9162,3471.7,3470.3,0.4582]
[1754117002862,0.9162,3471.7,3470.4,3.55]
[1754117003035,0.4818,3472.3,3470.7,2.88122616]
[1754117003356,0.144,3472.1,3471.6,0.144]
[1754117003852,0.9162,3472.0,3471.6,0.144]
[1754117004017,0.144,3472.1,3470.8,0.4562]
[1754117004018,0.9162,3471.9,3470.8,0.4562]
[1754117004631,0.9162,3471.8,3470.3,0.4582]
[1754117004955,0.144,3471.6,3471.1,0.144]
[1754117005128,0.9162,3471.5,3470.3,0.002]
[1754117005334,0.144,3471.3,3470.8,0.144]
[1754117005958,0.6248,3471.3,3470.8,0.144]
[1754117006452,0.144,3471.5,3471.0,0.144]
[1754117006654,0.4808,3471.3,3470.3,0.002]
[1754117006831,0.6248,3471.3,3470.8,0.144]
[1754117007061,0.9162,3471.2,3470.8,0.144]
[1754117007261,0.144,3471.3,3470.8,0.144]
[1754117007463,0.144,3471.3,3470.3,0.002]
[1754117007464,0.9162,3471.1,3470.3,0.002]
[1754117007685,0.9162,3471.1,3470.7,0.144]
[1754117007867,0.9162,3471.0,3470.3,0.002]
[1754117008070,0.144,3470.8,3470.3,0.146]
[1754117008275,0.9162,3470.7,3470.3,0.146]
[1754117008760,0.9162,3470.6,3470.3,0.146]
[1754117008964,6.457,3471.7,3470.3,0.002]
[1754117008965,1.0602,3470.5,3470.3,0.002]
[1754117009373,0.9162,3470.4,3470.3,0.002]
[1754117011803,0.4354,3470.9,3470.3,0.002]
[1754117012151,6.925,3471.4,3470.3,0.002]
[1754117012779,0.9162,3471.3,3470.3,0.002]
[1754117013287,6.925,3471.4,3470.3,0.002]
[1754117013288,0.4808,3471.2,3470.3,0.002]
[1754117013510,0.9162,3471.2,3470.3,0.002]
[1754117014020,6.925,3471.4,3470.3,0.4582]
[1754117014855,6.925,3471.4,3470.4,0.02881512]
[1754117015055,6.925,3471.4,3470.3,0.002]
[1754117015957,0.9162,3471.3,3470.3,0.002]
[1754117016998,0.9162,3471.2,3470.3,0.002]
[1754117018372,0.9162,3471.8,3470.5,0.55]
[1754117018692,0.001,3472.3,3470.8,2.88116008]
[1754117018870,0.001,3472.3,3470.9,3.55]
[1754117019077,0.4808,3472.2,3470.8,0.55]
[1754117019271,0.4808,3472.2,3470.9,3.0]
[1754117019495,0.001,3472.3,3471.1,0.55]
[1754117020071,0.9162,3472.2,3470.6,3.0]
[1754117020379,0.4808,3472.1,3470.7,1.0062]
[1754117020795,0.4354,3472.0,3470.3,0.002]
[1754117020993,0.144,3471.5,3471.0,0.144]
[1754117021212,0.144,3471.7,3471.2,0.144]
[1754117021361,0.4808,3471.9,3470.5,0.4562]
[1754117021362,0.4354,3472.0,3470.9,2.8810379]
[1754117021700,0.144,3472.2,3471.7,0.144]
[1754117021995,0.144,3472.2,3471.8,0.0288035]
[1754117022221,0.4808,3472.1,3471.7,0.144]
[1754117022359,0.9162,3472.1,3471.7,0.144]
[1754117022862,0.4808,3472.0,3471.7,0.144]
[1754117023309,0.4808,3471.9,3471.7,0.144]
[1754117023491,0.9162,3471.9,3471.7,0.144]
[1754117023807,0.4808,3471.9,3471.7,0.144]
[1754117024117,0.001,3472.2,3471.7,0.144]
[1754117024462,0.001,3472.2,3471.8,0.144]
[1754117024658,0.001,3472.2,3472.0,0.144]
[1754117024969,0.001,3472.2,3472.1,0.144]
[1754117026509,0.9172,3472.2,3471.2,0.4562]
[1754117026713,0.9162,3472.1,3470.1,0.4582]
[1754117027067,0.144,3471.5,3471.0,0.144]
[1754117027282,0.9162,3471.4,3471.0,0.144]
[1754117028009,0.4808,3471.8,3470.4,0.4562]
[1754117028301,0.4808,3472.1,3470.5,0.8724]
[1754117028667,0.4808,3472.1,3471.2,0.144]
[1754117028991,0.001,3472.2,3472.0,0.144]
[1754117029460,0.001,3472.2,3471.0,0.4562]
[1754117029663,0.001,3472.2,3471.4,2.88061822]
[1754117029888,0.001,3472.2,3472.1,0.144]
[1754117030375,0.001,3472.2,3472.1,0.6002]
[1754117031168,0.001,3472.2,3472.1,0.144]
[1754117031420,0.001,3472.2,3472.1,0.6002]
[1754117031711,0.001,3472.2,3472.1,0.8724]
[1754117032124,0.001,3472.2,3472.1,3.90120101]
[1754117032410,0.001,3472.2,3472.1,4.33130238]
[1754117032573,0.001,3472.2,3472.1,1.4224]